bitfinex/quotes_ETHUSD_20250930
["timestamp","ask_amount","ask_price","bid_price","bid_amount"]
[1759240058399,0.12,4176.2,4175.5,0.70194922]
[1759240058400,2.4,4176.1,4175.5,0.70194922]
[1759240058569,2.39436834,4176.5,4175.7,0.12]
[1759240058756,2.39429645,4176.6,4175.8,0.678]
[1759240058966,2.843,4177.0,4175.9,0.2283]
[1759240059270,2.843,4177.3,4176.0,0.47364636]
[1759240059475,2.39435498,4176.5,4176.1,0.2283]
[1759240059654,0.51203528,4177.2,4176.2,0.678]
[1759240059858,2.4,4177.0,4176.2,0.678]
[1759240060059,2.39416442,4176.9,4176.3,0.02394463]
[1759240060292,2.39462817,4176.1,4175.6,0.678]
[1759240060494,0.53061997,4176.9,4175.3,0.2283]
[1759240060495,2.39473798,4175.9,4175.3,0.2283]
[1759240060659,2.39473798,4175.9,4175.4,0.2283]
[1759240060987,2.39458244,4176.1,4175.5,0.678]
[1759240061294,3.1381035,4176.7,4175.5,0.678]
[1759240061494,2.4,4176.5,4175.6,0.02394865]
[1759240061668,2.39452778,4176.2,4175.6,0.02394865]
[1759240061877,2.39452778,4176.2,4175.7,0.678]
[1759240062072,2.39452778,4176.2,4175.8,0.678]
[1759240062270,0.60628127,4176.7,4175.6,0.02394865]
[1759240062271,2.39394809,4177.2,4175.9,0.6917]
[1759240062469,2.842,4177.1,4175.9,0.6917]
[1759240062670,2.39463601,4176.0,4175.9,0.6917]
[1759240062869,0.001,4176.4,4175.6,0.2258]
[1759240063293,0.001,4176.4,4175.2,3.5337]
[1759240063457,2.394818,4175.7,4175.2,3.5337]
[1759240063658,0.001,4176.4,4175.3,0.6917]
[1759240063857,0.001,4176.4,4175.4,0.0239498]
[1759240064066,2.39446399,4176.3,4175.4,0.6917]
[1759240064287,0.001,4176.4,4175.5,0.2258]
[1759240064721,2.39464269,4176.0,4175.5,0.2258]
[1759240065000,2.39457941,4176.1,4175.6,0.6917]
[1759240065183,2.39457941,4176.1,4175.2,2.842]
[1759240065184,2.39480048,4175.8,4175.2,3.0678]
[1759240065376,2.39481907,4175.7,4175.2,3.0678]
[1759240065572,0.23954138,4176.3,4175.3,0.6917]
[1759240065773,2.39452133,4176.2,4175.3,0.6917]
[1759240065973,2.39484803,4175.7,4175.3,0.71565037]
[1759240066283,2.39488659,4175.6,4175.4,0.2258]
[1759240066488,2.39481782,4175.7,4175.4,0.2258]
[1759240066795,0.23954138,4176.3,4175.5,0.71564922]
[1759240066796,2.39468068,4176.0,4175.5,0.71564922]
[1759240067001,0.001,4176.4,4175.6,0.6917]
[1759240067197,0.76452747,4176.4,4175.6,0.6917]
[1759240067498,0.001,4176.4,4175.3,0.2258]
[1759240067871,0.001,4176.4,4175.3,0.6917]
[1759240067872,2.39446399,4176.3,4175.3,0.6917]
[1759240068173,2.39457924,4176.1,4175.4,0.6917]
[1759240068373,0.001,4176.4,4175.5,0.2258]
[1759240068587,2.39473882,4175.9,4175.1,2.839]
[1759240068792,2.39473882,4175.9,4175.8,0.12]
[1759240068998,0.001,4176.4,4175.8,0.8117]
[1759240069176,2.39452512,4176.2,4175.8,0.8117]
[1759240069379,0.001,4176.4,4175.8,0.12]
[1759240069380,2.39446399,4176.3,4175.8,0.12]
[1759240069613,2.39469335,4175.9,4175.8,0.12]
[1759240070123,0.001,4176.4,4175.8,0.12]
[1759240070319,2.39469335,4175.9,4175.8,0.12]
[1759240070487,0.27631,4176.4,4175.8,0.12]
[1759240070682,2.39469335,4175.9,4175.8,0.12]
[1759240070899,2.39463984,4176.0,4175.8,0.12]
[1759240071115,2.39452476,4176.2,4175.8,0.12]
[1759240071318,0.27631,4176.4,4175.8,0.12]
[1759240071319,2.67071694,4176.4,4175.8,0.12]
[1759240071489,2.39453598,4176.2,4175.9,0.24974693]
[1759240071694,0.001,4176.4,4176.1,0.12]
[1759240071880,0.001,4176.4,4176.1,2.39456783]
[1759240072262,0.001,4176.4,4176.3,2.39446399]
[1759240072427,0.001,4176.4,4176.2,1.28412678]
[1759240072584,0.001,4176.4,4176.2,0.59242678]
[1759240072786,0.001,4176.4,4176.3,0.6917]
[1759240073230,0.001,4176.4,4176.3,3.08616399]
[1759240073532,0.001,4176.4,4176.3,3.69348008]
[1759240073731,0.001,4176.4,4176.3,1.17725933]
[1759240075426,0.001,4176.4,4176.3,0.48555933]
[1759240075634,0.001,4176.4,4175.6,0.2258]
[1759240075789,2.3946845,4176.0,4175.7,2.838]
[1759240076200,2.3947507,4175.8,4175.7,2.838]
[1759240076429,2.39502798,4175.4,4174.9,0.4659]
[1759240076640,0.47894273,4175.8,4174.9,0.4659]
[1759240076641,0.71104273,4175.8,4175.1,2.838]
[1759240077133,2.39501487,4175.4,4175.1,2.838]
[1759240077702,2.39504383,4175.3,4175.1,2.838]
[1759240077938,0.2321,4175.8,4175.1,2.838]
[1759240078230,2.39505008,4175.3,4175.1,2.838]
[1759240078440,2.39469335,4175.9,4175.1,2.838]
[1759240078733,2.67486203,4175.8,4175.1,2.838]
[1759240078936,2.39508086,4175.3,4175.1,2.838]
[1759240079103,0.28009933,4175.8,4175.1,2.838]
[1759240079505,2.67486039,4175.8,4175.1,3.0638]
[1759240079836,2.39446399,4176.3,4175.2,0.71565094]
[1759240080006,2.39483941,4175.7,4175.2,0.71565094]
[1759240080200,2.39452133,4176.2,4175.1,2.838]
[1759240080425,2.401,4176.4,4175.2,0.6917]
[1759240080624,2.39446399,4176.3,4175.6,0.002]
[1759240080946,2.39457867,4176.1,4175.6,0.002]
[1759240081100,2.39480805,4175.7,4175.6,0.002]
[1759240081624,3.03320805,4175.7,4175.6,0.002]
[1759240081825,2.62690805,4175.7,4175.6,0.002]
[1759240082006,2.74690805,4175.7,4175.6,0.002]
[1759240082206,3.31249448,4175.7,4175.6,0.002]
[1759240083237,3.08039448,4175.7,4175.6,0.002]
[1759240083437,2.39480805,4175.7,4175.6,0.122]
[1759240083654,2.39480805,4175.7,4175.6,0.002]
[1759240085049,3.03320805,4175.7,4175.6,0.002]
[1759240085327,5.43320805,4175.7,4175.6,0.002]
[1759240085629,6.56322306,4175.7,4175.6,0.002]
[1759240085825,7.35522306,4175.7,4175.6,0.002]
[1759240086059,7.86944849,4175.7,4175.6,0.002]
[1759240086457,9.27704849,4175.7,4175.6,0.002]
[1759240086958,2.91422543,4175.7,4175.6,0.002]
[1759240087282,2.39480805,4175.7,4175.6,0.002]
[1759240089359,0.51422543,4176.1,4175.6,0.002]
[1759240089559,2.3947507,4175.8,4175.6,0.002]
[1759240089734,2.39480805,4175.7,4175.6,0.2278]
[1759240089941,0.51695897,4176.4,4175.7,0.6917]
[1759240090131,0.001,4176.4,4175.7,0.6917]
[1759240090334,2.39459684,4176.1,4175.7,0.6917]
[1759240090532,2.39447749,4176.3,4175.8,0.2258]
[1759240090762,2.39465452,4176.0,4175.8,0.2258]
[1759240091066,2.39446399,4176.3,4175.6,0.002]
[1759240091266,0.001,4176.4,4175.7,0.6917]
[1759240091468,2.39459186,4176.1,4175.7,0.4659]
[1759240091768,0.001,4176.4,4175.8,0.7156475]
[1759240091970,0.001,4176.4,4175.9,0.2258]
[1759240092331,2.39446399,4176.3,4176.0,0.2459]
[1759240092546,2.39462072,4176.1,4176.0,0.2459]
[1759240092965,2.39541359,4176.4,4176.0,0.7045]
[1759240093274,0.001,4176.4,4176.1,0.7045]
[1759240093443,0.001,4176.4,4176.2,0.72844521]
[1759240093645,0.001,4176.4,4176.3,3.09896399]
[1759240093878,0.001,4176.4,4176.3,3.93451276]
[1759240094049,0.001,4176.4,4176.3,3.95845739]
[1759240094362,0.001,4176.4,4176.3,4.43283955]
[1759240095060,0.001,4176.4,4176.3,5.22483955]
[1759240095259,0.001,4176.4,4176.3,5.20089492]
[1759240095463,0.001,4176.4,4176.3,2.01443093]
[1759240095781,0.001,4176.4,4176.3,7.24689492]
[1759240095946,0.001,4176.4,4176.3,4.97243093]
[1759240096280,0.001,4176.4,4176.3,6.53134615]
[1759240097073,0.001,4176.4,4176.3,9.72334615]
[1759240097575,0.001,4176.4,4176.3,8.93134615]
[1759240097956,0.001,4176.4,4176.3,9.72334615]
[1759240098152,0.001,4176.4,4176.3,8.93134615]
[1759240098345,0.001,4176.4,4176.3,10.06393259]
[1759240098562,0.001,4176.4,4176.3,4.3728686]
[1759240098900,0.001,4176.4,4176.3,0.59438216]
[1759240099070,0.001,4176.4,4176.3,2.957]
[1759240099271,2.39540666,4176.4,4176.3,2.957]
[1759240099576,0.6353,4176.4,4175.6,0.002]
[1759240099793,0.6353,4176.4,4175.7,2.837]
[1759240099962,0.001,4176.4,4176.0,0.12]
[1759240100163,2.39457867,4176.1,4176.0,0.12]
[1759240100800,2.62257867,4176.1,4176.0,0.12]
[1759240101006,2.39480805,4175.7,4175.6,0.002]
[1759240101174,2.39463855,4176.0,4175.6,0.002]
[1759240101375,2.39473932,4175.9,4175.6,0.002]
[1759240101600,0.12,4176.3,4175.6,0.002]
[1759240101909,2.39541267,4176.4,4175.8,0.12]
[1759240102059,0.001,4176.4,4175.8,2.957]
[1759240102264,2.39464115,4176.0,4175.8,2.957]
[1759240102497,0.228,4176.3,4175.8,2.957]
[1759240102704,2.62269335,4175.9,4175.8,2.957]
[1759240102872,2.39469335,4175.9,4175.8,2.957]
[1759240103197,2.62269335,4175.9,4175.8,2.837]
[1759240103497,2.39469335,4175.9,4175.8,2.837]
[1759240103799,2.39461588,4176.1,4175.8,2.837]
[1759240103800,0.12,4176.3,4175.8,2.837]
[1759240104369,0.001,4176.4,4176.0,0.12]
[1759240104768,2.39457867,4176.1,4176.0,0.12]
[1759240105069,0.001,4176.4,4176.0,0.5491]
[1759240105283,0.001,4176.4,4176.3,0.12]
[1759240106191,0.001,4176.4,4176.3,0.69664463]
[1759240106398,0.001,4176.4,4176.3,3.06716399]
[1759240106778,0.001,4176.4,4176.3,5.90416399]
[1759240106987,0.001,4176.4,4176.3,8.30416399]
[1759240107195,0.001,4176.4,4176.3,9.37403731]
[1759240108016,0.001,4176.4,4176.0,0.2436]
[1759240108180,0.001,4176.4,4176.1,3.2661]
[1759240108380,0.001,4176.4,4176.3,2.39446399]
[1759240108594,0.001,4176.4,4175.6,2.402]
[1759240108595,2.39446399,4176.3,4175.6,0.002]
[1759240108796,0.001,4176.4,4175.6,0.002]
[1759240109109,2.39474535,4175.9,4175.7,2.837]
[1759240109320,2.39480805,4175.7,4175.6,0.002]
[1759240109471,0.228,4176.2,4175.6,0.002]
[1759240110175,2.39473717,4175.9,4175.6,0.002]
[1759240110377,2.39476855,4175.8,4175.6,0.002]
[1759240110582,2.62256056,4176.2,4175.6,0.002]
[1759240110801,0.4073,4176.4,4175.6,2.839]
[1759240110802,0.001,4176.4,4175.6,2.839]
[1759240111001,2.39541413,4176.4,4175.6,2.839]
[1759240111194,0.50334141,4176.4,4175.6,2.839]
[1759240111397,2.39473715,4175.9,4175.6,2.839]
[1759240111597,2.39474231,4175.9,4175.6,2.839]
[1759240111796,2.39541303,4176.4,4175.6,2.839]
[1759240112105,2.39464645,4176.0,4175.6,2.839]
[1759240112310,2.39446399,4176.3,4175.6,2.839]
[1759240112478,2.39480805,4175.7,4175.6,2.839]
[1759240112678,2.39471841,4175.9,4175.6,2.839]
[1759240113219,0.5309764,4176.2,4175.6,2.839]
[1759240113509,2.39446399,4176.3,4175.6,2.839]
[1759240113727,2.39480805,4175.7,4175.6,0.002]
[1759240114293,3.02910805,4175.7,4175.6,0.002]
[1759240114695,0.001,4176.4,4175.6,0.002]
[1759240114892,0.6343,4176.3,4175.6,0.002]
[1759240115124,2.39480805,4175.7,4175.6,0.002]
[1759240115323,2.87376189,4175.7,4175.6,0.002]
[1759240115629,3.50806189,4175.7,4175.6,0.002]
[1759240116202,2.39503748,4175.3,4175.2,1e-08]
[1759240116542,4.91503748,4175.3,4175.2,1e-08]
[1759240116828,6.34133748,4175.3,4175.2,1e-08]
[1759240117003,7.55018573,4175.3,4175.2,1e-08]
[1759240117206,8.06540802,4175.3,4175.2,1e-08]
[1759240117718,10.90240802,4175.3,4175.2,1e-08]
[1759240119299,7.27340802,4175.3,4175.2,1e-08]
[1759240119497,9.59518573,4175.3,4175.2,1e-08]
[1759240119698,10.11040802,4175.3,4175.2,1e-08]
[1759240120099,9.59518573,4175.3,4175.2,1e-08]
[1759240120733,10.38718573,4175.3,4175.2,1e-08]
[1759240120933,10.90172184,4175.3,4175.2,1e-08]
[1759240121515,3.18732432,4174.8,4174.7,1e-08]
[1759240121721,8.98258153,4174.8,4174.7,1e-08]
[1759240121924,9.73688153,4174.8,4174.7,1e-08]
[1759240122733,4.79532432,4174.8,4174.7,1e-08]
[1759240125965,2.39521203,4175.0,4174.7,1e-08]
[1759240125966,2.39508848,4175.3,4174.7,0.69430001]
[1759240126264,0.001,4176.0,4174.8,0.6943]
[1759240126265,2.839,4176.0,4174.8,0.6943]
[1759240126460,0.001,4176.0,4174.9,0.6943]
[1759240126619,0.001,4176.0,4175.0,0.2342]
[1759240126818,2.39502833,4175.4,4175.0,0.2342]
[1759240127052,2.39494011,4175.5,4175.1,0.6943]
[1759240127219,2.3949824,4175.4,4175.2,0.6943]
[1759240127420,2.3949824,4175.4,4174.7,1e-08]
[1759240127421,2.3949824,4175.4,4175.3,0.6943]
[1759240127666,2.39476673,4175.8,4175.3,0.6943]
[1759240127825,2.39482029,4175.7,4175.4,0.6943]
[1759240128026,0.001,4176.0,4174.7,1e-08]
[1759240128027,2.39477553,4175.8,4175.5,0.6943]
[1759240128331,2.39469335,4175.9,4175.6,0.6943]
[1759240128556,0.001,4176.0,4175.6,0.6943]
[1759240128979,2.39469335,4175.9,4175.6,0.6943]
[1759240129142,2.39485189,4175.7,4175.2,0.2342]
[1759240129337,0.001,4176.0,4175.3,0.6943]
[1759240129637,0.001,4176.0,4175.4,0.7182498]
[1759240129847,0.001,4176.0,4175.4,0.6943]
[1759240130052,0.001,4176.0,4175.5,0.6943]
[1759240130541,0.001,4176.0,4175.6,0.6943]
[1759240131084,0.001,4176.0,4175.7,0.6943]
[1759240131579,0.001,4176.0,4175.7,0.30892691]
[1759240131875,2.39473613,4175.9,4175.4,3.0712]
[1759240132079,2.39473613,4175.9,4175.5,0.6943]
[1759240132243,2.39469335,4175.9,4175.4,2.837]
[1759240132443,0.001,4176.0,4175.5,0.6943]
[1759240132644,0.001,4176.0,4175.7,0.12]
[1759240132856,2.3947507,4175.8,4175.7,0.12]
[1759240133056,2.87379325,4175.8,4175.7,0.12]
[1759240133350,0.59904255,4175.8,4175.2,0.12]
[1759240133556,2.39503748,4175.3,4175.2,0.12]
[1759240133973,2.39524711,4175.0,4174.7,0.46010001]
[1759240134288,0.83114255,4175.8,4175.0,0.12]
[1759240134495,2.39520958,4175.0,4174.9,0.12]
[1759240135806,2.39532432,4174.8,4174.7,1e-08]
[1759240139665,2.39526808,4174.9,4174.7,0.69430001]
[1759240140000,2.4,4175.4,4174.7,0.69430001]
[1759240140001,2.91546701,4175.4,4174.8,0.2342]
[1759240140163,2.4,4175.4,4174.8,0.2342]
[1759240140362,2.3948749,4175.6,4174.9,0.4601]
[1759240140597,0.001,4176.0,4175.0,0.2342]
[1759240140598,0.51646701,4176.0,4175.0,0.2342]
[1759240140899,2.39515221,4175.1,4175.0,0.2342]
[1759240141102,0.4063,4175.8,4174.7,1e-08]
[1759240141408,2.39502253,4175.4,4174.8,0.6943]
[1759240141603,2.39526664,4175.0,4174.8,0.6943]
[1759240141901,2.39532432,4174.8,4174.7,1e-08]
[1759240143000,2.39532432,4174.8,4174.7,0.69430001]
[1759240143171,2.39532432,4174.8,4174.7,1e-08]
[1759240143371,2.6321,4175.5,4174.7,1e-08]
[1759240143578,0.58754,4175.4,4174.7,0.46010001]
[1759240143775,2.39514877,4175.2,4174.7,0.69430001]
[1759240144007,0.5158057,4175.8,4174.7,0.46010001]
[1759240144305,0.001,4176.4,4175.5,2.39487853]
[1759240144463,0.001,4176.4,4174.9,3.18726695]
[1759240144464,0.001,4176.4,4175.9,2.39469335]
[1759240144865,0.001,4176.4,4175.9,0.6943]
[1759240145066,0.001,4176.4,4175.9,3.44212335]
[1759240145304,0.001,4176.4,4175.9,1.04743]
[1759240145503,0.001,4176.4,4175.9,3.0712]
[1759240145800,0.001,4176.4,4175.5,0.4601]
[1759240145801,2.39563878,4176.0,4175.6,2.837]
[1759240146001,0.001,4176.0,4175.7,0.6943]
[1759240146202,0.001,4176.0,4175.6,2.837]
[1759240146203,0.001,4176.0,4175.8,0.6943]
[1759240146403,0.001,4176.0,4175.3,0.2342]
[1759240146609,2.3947507,4175.8,4174.8,0.2342]
[1759240146814,2.69822935,4175.7,4174.8,0.2342]
[1759240147102,0.12,4175.6,4175.1,0.12]
[1759240147275,2.39492276,4175.5,4175.4,0.12]
[1759240147668,0.121,4176.0,4175.4,0.12]
[1759240147895,0.001,4176.0,4175.4,0.12]
[1759240148198,0.001,4176.0,4175.9,0.12]
[1759240148566,2.39563601,4176.0,4175.9,0.12]
[1759240148985,2.39484325,4175.7,4175.6,0.12]
[1759240149167,2.39473157,4175.9,4175.1,2.838]
[1759240149168,2.39509841,4175.2,4175.1,0.12]
[1759240149368,2.39497608,4175.5,4175.1,0.5801]
[1759240149369,2.39492694,4175.5,4175.1,0.5801]
[1759240149663,2.39493267,4175.5,4175.1,0.12]
[1759240149871,2.39493267,4175.5,4174.8,0.2342]
[1759240149872,2.84456766,4176.0,4175.2,0.6943]
[1759240150064,2.39486871,4175.6,4175.4,0.12]
[1759240150381,2.39475585,4175.8,4175.2,0.6943]
[1759240150576,2.39475585,4175.8,4175.7,0.12]
[1759240150901,0.6384,4175.8,4175.4,0.12]
[1759240151067,2.39492276,4175.5,4175.4,0.12]
[1759240151272,2.39532432,4174.8,4174.7,1e-08]
[1759240151604,0.54281308,4175.5,4174.9,0.12]
[1759240151813,0.54281308,4175.5,4174.7,0.46010001]
[1759240151814,0.12,4175.8,4175.0,0.71825209]
[1759240151985,2.39480762,4175.8,4175.4,0.12]
[1759240152181,2.39480762,4175.8,4175.0,0.6943]
[1759240152182,2.39480762,4175.8,4175.7,0.12]
[1759240152384,2.39493791,4175.5,4175.4,0.12]
[1759240152590,0.121,4176.0,4175.4,0.12]
[1759240152896,0.001,4176.0,4175.7,0.12]
[1759240153085,0.001,4176.0,4175.7,0.7854]
[1759240153282,0.001,4176.0,4175.8,0.6654]
[1759240153469,2.39469335,4175.9,4175.8,0.6654]
[1759240153668,2.39469335,4175.9,4175.7,0.12]
[1759240153873,2.3947507,4175.8,4175.7,0.12]
[1759240154277,2.39490845,4175.6,4175.5,0.12]
[1759240154481,2.3948375,4175.7,4175.5,0.12]
[1759240154677,2.3948654,4175.6,4175.5,0.12]
[1759240154934,0.001,4176.0,4175.5,0.12]
[1759240155271,0.2321,4175.9,4175.5,0.12]
[1759240155476,0.001,4176.0,4175.5,0.12]
[1759240155702,2.39469335,4175.9,4175.5,0.12]
[1759240155917,2.3948654,4175.6,4175.5,0.12]
[1759240156099,2.39482669,4175.7,4175.5,0.12]
[1759240156281,2.3948654,4175.6,4175.5,0.12]
[1759240156611,0.001,4176.0,4175.5,0.12]
[1759240156781,2.3948654,4175.6,4175.5,0.12]
[1759240157111,2.3948654,4175.6,4175.1,2.86495152]
[1759240157112,2.39505389,4175.3,4175.1,2.841]
[1759240157306,2.39499551,4175.4,4175.2,0.12]
[1759240157608,0.12,4175.8,4175.3,0.2298]
[1759240158013,0.001,4176.0,4175.4,0.2281]
[1759240158192,2.3948664,4175.6,4175.5,0.12]
[1759240158730,2.39492276,4175.5,4175.3,0.12]
[1759240158935,2.39481044,4175.7,4175.3,0.12]
[1759240159146,3.15159015,4176.0,4174.9,0.6961]
[1759240159147,0.7569,4176.0,4174.9,0.6961]
[1759240159302,0.001,4176.0,4175.6,0.12]
[1759240159506,2.39501106,4175.4,4175.3,0.12]
[1759240159915,2.39506956,4175.3,4174.9,2.837]
[1759240160122,2.39492276,4175.5,4175.0,0.12]
[1759240160304,2.39510378,4175.2,4175.0,0.12]
[1759240160730,2.39510378,4175.2,4175.0,0.3481]
[1759240160941,0.12,4175.6,4175.0,0.14395209]
[1759240161109,2.52,4175.9,4175.0,0.37205209]
[1759240161309,0.001,4176.0,4175.6,0.12]
[1759240161509,0.001,4176.0,4175.7,0.6961]
[1759240161840,2.39563601,4176.0,4175.9,0.12]
[1759240162031,2.39471308,4175.9,4174.9,3.5331]
[1759240162226,0.2331,4176.0,4175.0,3.5341]
[1759240162227,0.001,4176.0,4175.0,3.5341]
[1759240162474,2.39564436,4176.0,4175.1,0.58151]
[1759240162616,2.39469388,4175.9,4175.1,0.82141]
[1759240162821,2.39475246,4175.8,4175.2,0.2281]
[1759240163211,0.001,4176.0,4174.9,0.2281]
[1759240163411,0.4063,4175.9,4174.7,1e-08]
[1759240163642,2.39525494,4175.0,4174.7,1e-08]
[1759240163845,2.4,4175.7,4174.7,1e-08]
[1759240164041,2.39524845,4175.0,4174.7,1e-08]
[1759240164424,0.32463,4175.8,4174.7,0.22810001]
[1759240164624,2.39516548,4175.1,4174.7,0.69610001]
[1759240164940,2.39531134,4174.9,4174.7,1e-08]
[1759240165143,2.39532432,4174.8,4174.7,1e-08]
[1759240165345,5.67325545,4174.8,4174.7,1e-08]
[1759240165648,6.18945815,4174.8,4174.7,1e-08]
[1759240165847,0.792,4174.6,4172.8,0.002]
[1759240166146,2.39612785,4173.4,4172.8,0.002]
[1759240166348,2.87534556,4173.4,4172.8,0.002]
[1759240166561,5.91374556,4173.4,4172.8,0.002]
[1759240166719,8.75674556,4173.4,4172.8,0.002]
[1759240166918,9.27294826,4173.4,4172.8,0.002]
[1759240167556,6.42994826,4173.4,4172.8,0.002]
[1759240167742,8.75574556,4173.4,4172.8,0.002]
[1759240168061,2.39612785,4173.4,4172.8,0.002]
[1759240168722,5.43452785,4173.4,4172.8,0.002]
[1759240168917,5.94960204,4173.4,4172.8,0.002]
[1759240169241,0.792,4173.2,4172.8,1e-08]
[1759240169447,3.18841496,4172.9,4172.8,1e-08]
[1759240169643,6.51075646,4172.9,4172.8,1e-08]
[1759240169862,7.66423065,4172.9,4172.8,1e-08]
[1759240170218,10.50723065,4172.9,4172.8,1e-08]
[1759240170421,6.87223065,4172.9,4172.8,1e-08]
[1759240170619,9.30793065,4172.9,4172.8,1e-08]
[1759240171151,9.71423065,4172.9,4172.8,1e-08]
[1759240171353,9.99115646,4172.9,4172.8,1e-08]
[1759240171520,10.50467915,4172.9,4172.8,1e-08]
[1759240171926,10.62467915,4172.9,4172.8,1e-08]
[1759240172229,10.11115646,4172.9,4172.8,1e-08]
[1759240172552,10.62419696,4172.9,4172.8,1e-08]
[1759240172854,0.792,4172.7,4170.4,0.2281]
[1759240173054,2.39734453,4171.3,4170.3,0.002]
[1759240173272,2.39785152,4170.4,4170.3,0.002]
[1759240173557,7.64085152,4170.4,4170.3,0.002]
[1759240174132,4.79785152,4170.4,4170.3,0.47]
[1759240174328,2.4,4170.4,4170.3,0.2301]
[1759240174533,2.39767904,4170.7,4170.3,0.6981]
[1759240174758,4.79773653,4170.6,4170.4,0.6961]
[1759240174959,2.39785152,4170.4,4170.3,0.002]
[1759240175466,4.79785152,4170.4,4170.3,0.002]
[1759240175672,5.43625152,4170.4,4170.3,0.002]
[1759240176032,5.02995152,4170.4,4170.3,0.002]
[1759240176451,5.43625152,4170.4,4170.3,0.002]
[1759240176758,6.19837344,4170.4,4170.3,0.002]
[1759240176971,5.96627344,4170.4,4170.3,0.002]
[1759240177280,8.81227344,4170.4,4170.3,0.002]
[1759240177760,2.39785152,4170.4,4170.3,0.002]
[1759240177968,2.39785152,4170.4,4170.3,0.6981]
[1759240178141,2.39785152,4170.4,4170.3,0.002]
[1759240178930,2.39785152,4170.4,4170.3,0.6981]
[1759240179133,2.39785152,4170.4,4170.3,0.2301]
[1759240179334,2.39785152,4170.4,4170.3,0.002]
[1759240179777,3.192,4171.6,4170.3,0.6981]
[1759240180069,0.3192,4171.5,4170.3,0.6981]
[1759240180233,2.4,4171.4,4170.3,0.47]
[1759240180439,2.39762683,4170.8,4170.4,0.2281]
[1759240180635,0.2321,4172.1,4170.5,0.6961]
[1759240180872,2.39751388,4171.0,4170.6,0.2281]
[1759240181078,2.39740658,4171.2,4170.7,0.6961]
[1759240181234,2.39740658,4171.2,4170.3,0.002]
[1759240181235,2.39717333,4171.6,4170.8,0.6961]
[1759240181435,2.39720022,4171.6,4170.9,0.6961]
[1759240181647,0.4063,4172.9,4171.0,0.2281]
[1759240181832,2.39701199,4171.9,4171.1,0.468]
[1759240182032,0.2321,4173.1,4171.2,0.2281]
[1759240182033,2.39710774,4171.7,4171.2,0.2281]
[1759240182257,2.845,4172.1,4171.3,0.6961]
[1759240182458,2.39687877,4172.1,4171.4,0.69267276]
[1759240182655,2.39698115,4172.0,4171.4,0.6687]
[1759240182865,2.52,4172.3,4171.7,0.12]
[1759240183169,2.62841504,4173.1,4171.8,0.2271]
[1759240183368,2.39667066,4172.5,4171.8,0.6687]
[1759240183550,0.12,4172.6,4172.0,0.12]
[1759240183738,2.39686047,4172.2,4172.0,0.12]
[1759240183942,2.844,4172.7,4171.2,0.2271]
[1759240183943,2.39687447,4172.1,4171.2,0.2271]
[1759240184171,0.12,4172.3,4171.7,0.12]
[1759240184466,2.39688955,4172.1,4171.7,0.7887]
[1759240184667,2.39681702,4172.2,4171.8,0.6687]
[1759240184838,2.39692327,4172.1,4172.0,0.12]
[1759240185035,2.39687447,4172.1,4172.0,0.12]
[1759240185241,0.12,4172.6,4172.0,0.7887]
[1759240185467,2.51663259,4172.6,4172.0,0.7887]
[1759240185646,2.52,4172.6,4172.0,0.7887]
[1759240185847,2.52,4172.6,4172.0,0.3471]
[1759240185848,0.12,4172.6,4172.0,0.3471]
[1759240186039,2.3966432,4172.6,4172.1,0.6687]
[1759240186239,2.3966432,4172.6,4171.8,0.4416]
[1759240186240,2.69557077,4172.6,4171.8,0.4416]
[1759240186543,2.843,4172.9,4171.4,3.0687]
[1759240186837,2.39664836,4172.5,4171.5,0.6687]
[1759240187044,3.0727,4173.1,4171.6,0.2271]
[1759240187282,2.39641496,4172.9,4171.6,0.2271]
[1759240187485,2.39687457,4172.1,4171.6,0.2271]
[1759240187787,2.39680104,4172.3,4171.7,0.6687]
[1759240187936,2.39669599,4172.5,4171.7,0.6687]
[1759240188141,2.39674922,4172.4,4171.7,0.6687]
[1759240188375,2.39676175,4172.3,4171.7,0.6687]
[1759240188578,2.39690302,4172.1,4171.7,0.6687]
[1759240188793,5.23953057,4172.7,4171.3,2.39727698]
[1759240188940,6.02646351,4172.7,4171.8,0.6687]
[1759240189140,2.39676603,4172.3,4171.8,0.6687]
[1759240189340,2.39687926,4172.1,4171.2,0.2271]
[1759240189570,3.62992306,4172.7,4171.2,0.2271]
[1759240189744,0.2297,4172.4,4170.5,0.4416]
[1759240189949,2.4,4172.1,4170.8,0.2271]
[1759240190165,2.39723093,4171.5,4170.8,0.6687]
[1759240190340,3.479,4172.0,4170.5,0.33210772]
[1759240190545,2.39760826,4170.9,4170.3,0.2291]
[1759240190748,4.79710429,4171.7,4170.3,0.2291]
[1759240190942,0.50268043,4171.6,4170.3,0.2291]
[1759240191157,2.3976717,4170.8,4170.3,0.2291]
[1759240191651,2.39763289,4170.8,4170.3,0.002]
[1759240191848,2.39769035,4170.7,4170.3,0.002]
[1759240192593,2.4,4171.4,4170.3,0.002]
[1759240192885,2.3978482,4170.5,4170.3,0.002]
[1759240193261,2.39785152,4170.4,4170.3,0.002]
[1759240193853,2.62755152,4170.4,4170.3,0.002]
[1759240194048,2.39785152,4170.4,4170.3,0.002]
[1759240194781,5.23973653,4170.6,4170.3,0.002]
[1759240194782,2.39779421,4170.5,4170.3,0.002]
[1759240194964,2.39785152,4170.4,4170.3,0.002]
[1759240195281,3.51363667,4170.4,4170.3,0.002]
[1759240195486,2.87763667,4170.4,4170.3,0.002]